Cogmind - Beta 14 @@@ ROGUE MODE // 2024.09.03 @ 20:07:12 Player: Bjolfur Result: Destroyed by 9Z-N6G(R) with Subdweller Laser Performance ------------- Evolutions (0) 0 Regions Visited (2) 400 Robots Destroyed (26) 130 Value Destroyed (572) 572 Prototype IDs (2) 40 Alien Tech Used (0) 0 Bonus (0) 0 TOTAL SCORE: 1142 Bonus ------- None Cogmind --------- Core Integrity 0/250 Matter 300/300 Energy 100/100 System Corruption 0% Temperature Cool (6) Movement Walking (130) Location -10/Subcaves Parts ------- > --- POWER (1) -------- Subdweller Power Source > --- PROPULSION (2) --- Aluminum Leg Makeshift Leg > --- UTILITY (2) ------ Medium Storage Unit Shield Generator > --- WEAPON (2) ------- Light Assault Rifle Mining Laser > --- INVENTORY (10) --- Light Treads Aluminum Leg Large Storage Unit Medium Matter Pod (100) Subdweller Optics Scrap Shield Tractor Beam Scrap Shield Fragment (47) Peak State ------------ > --- POWER ------------ Subdweller Power Source > --- PROPULSION ------- Aluminum Leg Makeshift Leg > --- UTILITY ---------- Medium Storage Unit Shield Generator > --- WEAPON ----------- EM Pulse Gun Light Assault Rifle > --- INVENTORY -------- Light Treads Aluminum Leg Large Storage Unit Medium Matter Pod Subdweller Optics Scrap Shield Tractor Beam Mining Laser Scrap Shield Fragment [Rating: 13] Favorites ----------- Power Ion Engine Engine Ion Engine Propulsion Aluminum Leg Treads Light Treads Leg Aluminum Leg Utility Medium Storage Unit Device Seismic Detector Storage Medium Storage Unit Weapon Assault Rifle Energy Gun Heavy EM Pulse Gun Ballistic Gun Assault Rifle Special Weapon Mining Laser Build | -11 -10 -10 ------- Run | Yrd Mat Sub Slots Evolved . | . . . Power . | . . . Propulsion . | . . . Utility . | . . . Weapon . | . . . Parts Attached 39 | 10 20 9 Power 4 | 1 2 1 Engine 4 | 1 2 1 Core . | . . . Reactor . | . . . Propulsion 12 | 4 6 2 Treads 1 | 1 . . Leg 11 | 3 6 2 Wheel . | . . . Hover . | . . . Flight . | . . . Utility 6 | 2 3 1 Device 4 | 1 2 1 Storage 2 | 1 1 . Processor . | . . . Hackware . | . . . Protection . | . . . Artifact . | . . . Weapon 17 | 3 9 5 Energy Gun 6 | 1 3 2 Energy Cannon . | . . . Ballistic Gun 8 | 2 5 1 Ballistic Cannon . | . . . Launcher . | . . . Special Weapon 3 | . 1 2 Impact Weapon . | . . . Slashing Weapon . | . . . Piercing Weapon . | . . . Special Melee Weapon . | . . . Unidentified Prototypes . | . . . Parts Lost 7 | . 1 6 Power 1 | . . 1 Propulsion 1 | . . 1 Utility 2 | . 1 1 Weapon 3 | . . 3 Highest Loss Streak 5 | . 1 5 To Critical Strikes 1 | . . 1 Average Slot Usage (%) 98 | . 99 94 Engine 13 | . 14 13 Leg 27 | . 28 27 Device 13 | . 13 13 Storage 14 | . 14 14 Energy Gun 8 | . 10 3 Ballistic Gun 16 | . 17 14 Special Weapon 1 | . . 7 Peak Build Rating 13 | 7 11 13 Average Rating 9 | 5 8 10 On Entrance 5 | . 7 8 Naked Turns . | . . . Heaviest Build 21 | 15 21 20 Greatest Support 30 | 20 20 30 Greatest Overweight (x) 2 | 2 1 1 Average Overweight (x) . | . . . Largest Inventory Capacity 10 | 8 10 10 Average Capacity 9 | 7 9 10 Most Carried 10 | 5 10 10 Average Carried 9 | 3 9 9 Final Capacity 10 | 8 10 10 Final Carried 10 | 5 10 9 Class Distribution -------------------- 98% | Mutant Dominant Class ---------------- Mutant | -10/Materials Mutant | -10/Subcaves Resources | -11 -10 -10 ----------- Run | Yrd Mat Sub Matter Collected 884 | 291 452 141 Remotely . | . . . Salvage Created 773 | 73 510 190 Parts 60 | 3 40 17 Haulers Intercepted . | . . . Recyclers Shooed . | . . . Parts Field Recycled . | . . . Retrieved Matter . | . . . Parts Self-Destructed 13 | . . 13 Prevented . | . . . Kills | -11 -10 -10 ------- Run | Yrd Mat Sub Combat Hostiles Destroyed 20 | . 14 6 Guns 20 | . 14 6 Classes Destroyed 7 | 2 4 1 Tunneler 1 | 1 . . Recycler 1 | 1 . . Operator 1 | . 1 . Watcher 3 | . 3 . Swarmer 9 | . 6 3 Grunt 8 | . 8 . Subdweller 3 | . . 3 Best Kill Streak 3 | 2 3 2 Combat Bots Only 3 | . 3 2 Max Kills in Single Turn 1 | 1 1 1 Gunslinging . | . . . Exploded . | . . . Melee . | . . . Uniques/NPCs Destroyed . | . . . Combat | -11 -10 -10 -------- Run | Yrd Mat Sub Hostile Shots Fired 124 | . 46 78 Missed 36 | . 16 20 Damage Taken 1183 | . 351 832 Core 268 | . 61 207 Absorbed by Shields 40 | . . 40 Regen/Repaired (Parts) 60 | . 60 . Core Remaining (%) 100 | 100 . . Volleys Fired 103 | 4 49 50 Largest 2 | 2 2 2 Hottest 100 | 60 100 100 Shots Fired 165 | 8 93 64 Gun 159 | 8 92 59 Cannon . | . . . Launcher . | . . . Special 6 | . 1 5 Kinetic 114 | 4 58 52 Thermal 6 | . 1 5 Explosive . | . . . Electromagnetic 45 | 4 34 7 Robot Hit Streak 30 | 3 14 30 Robot Miss Streak 4 | 2 3 4 Penetration Max . | . . . Secondary Targets 1 | . 1 . Max Gunslinging Chain 1 | . 1 . Shots Hit Robots 99 | 4 50 45 Core Hits 44 | 2 25 17 Critical Kills . | . . . Critical Parts Destroyed . | . . . Critical Strikes . | . . . Melee Attacks . | . . . Impact . | . . . Slashing . | . . . Piercing . | . . . Sneak Attacks . | . . . Combat Hostiles . | . . . Follow-up Attacks . | . . . Damage Inflicted 1227 | 82 735 410 Guns 1150 | 38 702 410 Cannons . | . . . Explosions 77 | 44 33 . Melee . | . . . Ramming . | . . . Kinetic 703 | 13 364 326 Thermal 77 | 44 33 . Explosive . | . . . Electromagnetic 447 | 25 338 84 Impact . | . . . Slashing . | . . . Piercing . | . . . Highest Corruption . | . . . Average Corruption . | . . . Corruption Purged . | . . . Corruption Blocked . | . . . Overload Shots . | . . . Overflow Damage 3 | . 3 . Projectiles . | . . . Explosions 3 | . 3 . Melee . | . . . Knockbacks . | . . . Impact . | . . . Kinetic . | . . . Secondary . | . . . Self-Inflicted Damage 37 | . 37 . Shots 1 | . 1 . Rammed . | . . . Targets Rammed . | . . . Kicked . | . . . Crushed . | . . . Highest Temperature 51 | . 51 . Average Temperature 17 | . 17 . Received Heat Transfer 249 | . 129 120 Siege Activations . | . . . Robots Corrupted . | . . . Combat Hostiles . | . . . Parts Fried 2 | . 2 . Impact Corruptions . | . . . Robots Melted . | . . . Combat Hostiles . | . . . Parts Melted . | . . . Heat Transferred 100 | 50 50 . Parts Sabotaged . | . . . Parts Stolen . | . . . Parts Stripped . | . . . Power Chain Reactions 2 | 1 1 . Alert | -11 -10 -10 ------- Run | Yrd Mat Sub Peak Influence 286 | 10 286 . Initial 6 | . 6 . Average 71 | 5 74 . Maximum Alert Level 1 | . 1 . Low Security (%) 94 | 100 94 . Level 1 5 | . 5 . Level 2 . | . . . Level 3 . | . . . Level 4 . | . . . Level 5 . | . . . High Security . | . . . Max Security . | . . . Squads Dispatched 3 | . 3 . Investigation 2 | . 2 . Extermination . | . . . Reinforcement 1 | . 1 . Assault . | . . . Garrison . | . . . Intercept . | . . . Searches Triggered . | . . . Construction Impeded . | . . . Haulers Reinforced . | . . . Active Scanning Responses . | . . . Cargo Convoy Interrupts . | . . . Stealth | -11 -10 -10 --------- Run | Yrd Mat Sub Distress Signals 3 | . 3 . Communications Jammed . | . . . Distress Signals . | . . . Times Spotted 38 | . 28 10 Peak Tracking Total 6 | . 6 3 Tactical Retreats 3 | . 2 1 Traps | -11 -10 -10 ------- Run | Yrd Mat Sub Traps Triggered 1 | . 1 . Indirectly . | . . . Trap Hack Attempts . | . . . Triggered . | . . . Disarmed . | . . . Reprogrammed . | . . . Reused . | . . . Traps Extracted . | . . . Installed . | . . . Triggered . | . . . Machines | -11 -10 -10 ---------- Run | Yrd Mat Sub Machines Disabled . | . . . Max in Single Turn . | . . . Machines Repaired . | . . . Machines Dismantled . | . . . Machines Sabotaged . | . . . Overloaded Fab Kills . | . . . Hacking | -11 -10 -10 --------- Run | Yrd Mat Sub Machines Accessed 8 | . 8 . Terminals 7 | . 7 . Fabricators . | . . . Repair Stations 1 | . 1 . Recycling Units . | . . . Scanalyzers . | . . . Garrison Access . | . . . Total Hacks 16 | . 16 . Successful 13 | . 13 . Failed 2 | . 2 . Catastrophic . | . . . Database Lockouts 1 | . 1 . Manual 13 | . 13 . Terminals 14 | . 14 . Fabricators . | . . . Repair Stations 2 | . 2 . Recycling Units . | . . . Scanalyzers . | . . . Garrison Access . | . . . Terminal Hacks 5 | . 5 . Robot Schematic 1 | . 1 . Prototype ID Bank 1 | . 1 . Recall Investigation 1 | . 1 . Hauler Manifests 1 | . 1 . Zone Layout 1 | . 1 . Fabricator Hacks . | . . . Repair Station Hacks 2 | . 2 . Scan Component 1 | . 1 . Repair 1 | . 1 . Recycling Unit Hacks . | . . . Scanalyzer . | . . . Garrison Access Hacks . | . . . Unauthorized Hacks 6 | . 6 . Terminals 6 | . 6 . Botnet 1 | . 1 . Skim 5 | . 5 . Fabricators . | . . . Repair Stations . | . . . Recycling Units . | . . . Scanalyzers . | . . . Garrison Access . | . . . Data Cores Recovered 1 | . 1 . Used . | . . . Hacking Detections 4 | . 4 . Full Trace Events . | . . . Feedback Events . | . . . Feedback Blocked . | . . . Robot Schematics Acquired 1 | . 1 . Robots Built . | . . . Authchips . | . . . Time . | . . . Total Robot Build Rating . | . . . Part Schematics Acquired . | . . . Parts Built . | . . . Authchips . | . . . Time . | . . . Total Part Build Rating . | . . . Parts Repaired 1 | . 1 . Time 13 | . 13 . Parts Recycled . | . . . Recycled Matter . | . . . Retrieved Matter . | . . . Retrieved Components . | . . . Parts Scanalyzed . | . . . Part Schematics Acquired . | . . . Parts Damaged . | . . . Bothacking | -11 -10 -10 ------------ Run | Yrd Mat Sub Used RIF Installer . | . . . Robots Hacked . | . . . Non-combat . | . . . Combat . | . . . Robot Hacks Applied . | . . . Relay Couplers Released . | . . . Fabnet Peak Effective % . | . . . Robots Rewired . | . . . Allies Hacked . | . . . Hacks Repelled . | . . . Allies | -11 -10 -10 -------- Run | Yrd Mat Sub Total Allies . | . . . Largest Group . | . . . Highest-Rated Group . | . . . Highest-Rated Ally . | . . . Total Orders . | . . . Ally Attacks . | . . . Total Damage . | . . . Kills . | . . . Allies Corrupted . | . . . Allies Melted . | . . . Intel | -11 -10 -10 ------- Run | Yrd Mat Sub Robot Analysis Total . | . . . Derelict Logs Recovered . | . . . Drone Launches . | . . . Drone Recoveries . | . . . Exploration | -11 -10 -10 ------------- Run | Yrd Mat Sub Turns Passed 3934 | 146 2839 949 Spaces Moved 2130 | 64 1449 617 Core 10 | 10 . . Treads . | . . . Legs 2120 | 54 1449 617 Wheels . | . . . Hover . | . . . Flight . | . . . Fastest Speed 50 | 50 120 120 Average Speed 147 | 173 155 125 Slowest Speed 190 | 190 190 190 Overloaded Moves . | . . . Propulsion Burnouts . | . . . Robots Hopped . | . . . Cave-ins Triggered . | . . . Exploration Rate (%) 45 | 5 96 35 Regions Visited 2 Branch Regions 1 Pre-discovered Areas . | . . . Known Exits Taken 1 | . 1 . Unknown Exits Taken 1 | 1 . . Scrap Searched 4 | . . 4 Spaces Dug . | . . . Terrain Destroyed 9 | 3 6 . Melee . | . . . Projectile . | . . . AOE 9 | 3 6 . Terrain Rammed . | . . . Walls Destroyed . | . . . Machines Disabled . | . . . Actions | -11 -10 -10 --------- Run | Yrd Mat Sub Total 2765 | 88 1948 729 Wait 446 | . 400 46 Move 2128 | 63 1448 617 Hop . | . . . Pick Up 25 | 8 13 4 Fast Attach 10 | 6 2 2 Attach 9 | 1 2 6 Detach . | . . . Swap 20 | 3 16 1 Drop 24 | 3 18 3 Fire 103 | 4 49 50 Melee . | . . . Ram . | . . . Kick . | . . . Crush . | . . . Escape Stasis . | . . . Rewire . | . . . Trap . | . . . Miscellaneous . | . . . Route ------- -11/Scrapyard -10/Materials (discovered 5 exits: [*Mat x3] / *Min / *Sub) -10/Subcaves History --------- Turn | Location | Event 66 | -11/Scrapyard | Discovered new exit (range 16) 147 | -11/Scrapyard | Entered Materials 320 | -10/Materials | Build established: Mutant 565 | -10/Materials | Discovered new exit (range 10) 624 | -10/Materials | Central database locked down 630 | -10/Materials | Discovered new exit (range 13) 1098 | -10/Materials | Repaired Assault Rifle 1630 | -10/Materials | Discovered new exit (range 15) 1780 | -10/Materials | Discovered new exit (range 5) 2011 | -10/Materials | Learned 2 Mines zone layouts 2062 | -10/Materials | Identified exit to Subcaves 2105 | -10/Materials | Learned location of 1 exit from Recycling 2140 | -10/Materials | Learned 4 Subcaves zone layouts 2203 | -10/Materials | Learned location of 1 exit from Recycling 2240 | -10/Materials | Identified exit to Mines 2344 | -10/Materials | Loaded intel: 15 trap records 2986 | -10/Materials | Entered Subcaves 3375 | -10/Subcaves | Core integrity fell below 50% 3399 | -10/Subcaves | Lost 5 parts (1p1n1u2w) 3670 | -10/Subcaves | Core integrity fell below 20% 3935 | -10/Subcaves | Destroyed by 9Z-N6G(R) with Subdweller Laser Last Messages --------------- 03619_ EM Pulse Gun destroyed. 03633_ S-10 Pest destroyed. 03635_ Acquired 9 matter. 03637_ Flight Unit fries itself beyond repair. 03665_ Sub. Power Source shoots sparks and powers down. 03676_ PD-I1Y(u) tweaks Twisted Machinery. 03684_ S-10 Pest destroyed. 03686_ Acquired 5 matter. 03688_ Acquired 1 matter. 03696_ S-10 Pest destroyed. 03698_ Acquired 4 matter. 03701_ Lgt. Ion Engine fries itself beyond repair. 03702_ Flight Unit fries itself beyond repair. 03707_ Lgt. Ion Engine fries itself beyond repair. 03792_ PD-I1Y(u) tweaks Twisted Machinery. 03844_ Acquired 10 matter. Map ----- +----------------------------------------------------+ | ##?????????????????????????????????????##?# #???? | | ??????????????????????????????????????? ### ##??? | | ??????????????????????????????????????? ## #??? | | ??????????????????????????????????????? #??? | | ??????????????????????????????????????? #### | | ??????????????????????????????????????? ## | | ??????????????????????????????????????? | | ???????????????????????????????????????# | | ???????????????????????????????????????# | | ???????????????????????????????????????# | | ??????????????????????????????????????? | | ??????????????????????????????????????? ## | | ?####?????????????????????????????????? #### ## | | ## ##????????????????????????????????? #??####? | | # #???????????????????????????????????????????? | | " ##??????????????????????????????????????????? | | " "#??????????????????????????????????????????? | | " "???????????????????????????????????????????? | | " " #####?????##????????????????????????????????? | | """ # ## ###### ##???????????????????????????????? | | " # ##??????? ?????????????????????? | | "" ## ### ??#####??????????????? | | " # ## #??? ???????????????? | | ########## ## ##??????? #????????????????? | | ##????????## #???????#### #????????????????? | | ##?????????# ##?#######@ R #?????????????????? | | ???????????## ### # # ##?????????????????? | | ????????????# #??????????????????? | | ???######???## ###### #??????????????????? | | ### ##???###????###########??????????????????? | | ##??????????????????????????????????????? | | ##?????????????????????????????????????? | | #?????????????????????????????????????? | | #?????????????????????????????????????? | | #??????????????????????????????????????? | | ##??????????????????????????????????????????? | | ###???????????????????????????????????????????? | | ##?????????????????????????????????????????????? | | ##??????????????????????????????????????????????? | | ###???????####??????????????????????????????????? | | #??????## ##?????????????????????????????????? | | #?????# #?????????????????????????????????? | | ## #?????????????????????????????????? | | ## # #?????????????????????????????????? | | ##? ## #?????????????????????????????????? | | #??? #### #?????????????????????????????????? | | #???? #?## #?????????????????????????????????? | | #????##?# #?????????????????????????????????? | | ##??????# #?????????????????????????????????? | | ####???# ##?????????????????????????????????? | +----------------------------------------------------+ Best States ------------- Heat Dissipation 39 Energy Generation 15 Energy Capacity 250 Matter Stores 300 Matter Capacity 300 Sight Range 16 Terrain Scan Density 10 Evasion (%) 55 Item Schematics ----------------- None Robot Schematics ------------------ G-34 Mercenary | -10/Materials | Hacked Fabricated ------------ Nothing Alien Tech Used ----------------- None Achievements -------------- None Challenges ------------ None Game ------ Seed ParticleBehemothObliterator Manual? 0 Play Time 00:59:12 Cumulative 269.4 hours Start 2024.09.03 @ 19:01:36 End 2024.09.03 @ 20:07:12 Sessions 1 Manual Loads 0 Difficulty Rogue Special Mode None Game No. 37 Rogue 4 Adventurer 0 Explorer 33 Win Type - Total 5 Types 5/0/0/0/0/0/0/0/0 Lore% 28 Gallery% 45 Achievement% 41 Wizard Run 0 Options --------- Layout 2 ASCII 0 Keyboard 0 Movement Mouse Keybinds 0 Fullscreen 1 Font 24/Smallcaps Map View 50x44 Zoom Use 0% Tactical HUD 1 Map Filters NONE Filters NONE Steam 1 RUN: daff3043-1fd5-4ed9-954e-956107e16649